[Event "Titled Tuesday Blitz April 18 Early 2023"]
[White "Alexikov, Alexander"]
[Black "Kim, Sergey"]
[WhiteFideId "14103958"]
[BlackFideId "13700570"]
[WhiteElo "2186"]
[BlackElo "2606"]
[Result "0-1"]
[Round "03"]
[TimeControl "180+2"]
[Date "2023.04.18"]
[WhiteClock "0:00:02"]
[BlackClock "0:00:18"]

1. e4 {[%clk 0:03:00]}  e5 {[%clk 0:03:00]} 2. Nf3 {[%clk 0:02:59]}  Nc6 {[%clk 0:03:00]} 3. c3 {[%clk 0:03:00]}  d5 {[%clk 0:02:59]} 4. Qa4 {[%clk 0:02:58]}  f6 {[%clk 0:02:57]} 5. Bb5 {[%clk 0:02:54]}  Ne7 {[%clk 0:02:56]} 6. exd5 {[%clk 0:02:54]}  Qxd5 {[%clk 0:02:56]} 7. d4 {[%clk 0:02:55]}  e4 {[%clk 0:02:53]} 8. c4 {[%clk 0:02:54]}  Qh5 {[%clk 0:02:47]} 9. Nfd2 {[%clk 0:02:49]}  Bd7 {[%clk 0:02:31]} 10. d5 {[%clk 0:02:25]}  Ne5 {[%clk 0:02:30]} 11. Bxd7+ {[%clk 0:02:24]}  Nxd7 {[%clk 0:02:30]} 12. Nxe4 {[%clk 0:02:17]}  Qe5 {[%clk 0:02:29]} 13. Nc3 {[%clk 0:02:14]}  f5 {[%clk 0:02:29]} 14. f4 {[%clk 0:02:14]}  Qd4 {[%clk 0:02:28]} 15. Ng5 {[%clk 0:02:08]}  Qd3 {[%clk 0:01:50]} 16. Nb5 {[%clk 0:01:43]}  Rc8 {[%clk 0:01:17]} 17. Rf1 {[%clk 0:01:16]}  a6 {[%clk 0:01:08]} 18. Nc3 {[%clk 0:01:10]}  b5 {[%clk 0:01:02]} 19. cxb5 {[%clk 0:01:04]}  Nc5 {[%clk 0:00:56]} 20. Qd1 {[%clk 0:00:53]}  Nxd5 {[%clk 0:00:56]} 21. Nxd5 {[%clk 0:00:48]}  Bd6 {[%clk 0:00:52]} 22. Rf3 {[%clk 0:00:41]}  Qxb5 {[%clk 0:00:51]} 23. Nc3 {[%clk 0:00:38]}  Qc6 {[%clk 0:00:45]} 24. Qd5 {[%clk 0:00:37]}  Qxd5 {[%clk 0:00:40]} 25. Nxd5 {[%clk 0:00:36]}  O-O {[%clk 0:00:41]} 26. Bd2 {[%clk 0:00:33]}  h6 {[%clk 0:00:39]} 27. Nh3 {[%clk 0:00:31]}  Rfe8+ {[%clk 0:00:39]} 28. Kf1 {[%clk 0:00:29]}  Ne4 {[%clk 0:00:37]} 29. Rd1 {[%clk 0:00:27]}  Rb8 {[%clk 0:00:30]} 30. b3 {[%clk 0:00:24]}  Rb5 {[%clk 0:00:27]} 31. Nc3 {[%clk 0:00:23]}  Rc5 {[%clk 0:00:23]} 32. Nxe4 {[%clk 0:00:20]}  fxe4 {[%clk 0:00:23]} 33. Re3 {[%clk 0:00:20]}  Rc2 {[%clk 0:00:23]} 34. Re2 {[%clk 0:00:18]}  Rxa2 {[%clk 0:00:21]} 35. Be3 {[%clk 0:00:18]}  Ra3 {[%clk 0:00:21]} 36. Rb1 {[%clk 0:00:12]}  Rb8 {[%clk 0:00:21]} 37. b4 {[%clk 0:00:11]}  Rxb4 {[%clk 0:00:20]} 38. Rxb4 {[%clk 0:00:10]}  Bxb4 {[%clk 0:00:20]} 39. Kf2 {[%clk 0:00:10]}  Bd6 {[%clk 0:00:20]} 40. g4 {[%clk 0:00:06]}  a5 {[%clk 0:00:20]} 41. Kg3 {[%clk 0:00:05]}  a4 {[%clk 0:00:20]} 42. Kh4 {[%clk 0:00:04]}  Rb3 {[%clk 0:00:20]} 43. Nf2 {[%clk 0:00:02]}  a3 {[%clk 0:00:18]} 0-1


[Site "https://www.chess.com"]

[Event "Titled Tuesday Blitz April 18 Early 2023"]
[White "Mrudul Dehankar"]
[Black "Trakru, Rohun"]
[WhiteFideId "25096990"]
[BlackFideId "2097613"]
[WhiteElo "2139"]
[BlackElo "1852"]
[Result "1-0"]
[Round "03"]
[TimeControl "180+2"]
[Date "2023.04.18"]
[WhiteClock "0:00:04"]
[BlackClock "0:00:20"]

1. e4 {[%clk 0:02:55]}  a6 {[%clk 0:02:14]} 2. d4 {[%clk 0:02:45]}  e6 {[%clk 0:02:13]} 3. Nf3 {[%clk 0:02:45]}  d5 {[%clk 0:02:14]} 4. e5 {[%clk 0:02:37]}  c5 {[%clk 0:02:13]} 5. c3 {[%clk 0:02:36]}  Nc6 {[%clk 0:02:13]} 6. Bd3 {[%clk 0:02:32]}  Qb6 {[%clk 0:02:09]} 7. O-O {[%clk 0:02:26]}  cxd4 {[%clk 0:02:05]} 8. Re1 {[%clk 0:02:20]}  Bd7 {[%clk 0:01:40]} 9. Nbd2 {[%clk 0:01:33]}  dxc3 {[%clk 0:01:35]} 10. bxc3 {[%clk 0:01:33]}  Bc5 {[%clk 0:01:36]} 11. Qe2 {[%clk 0:01:30]}  Nh6 {[%clk 0:01:31]} 12. Nb3 {[%clk 0:01:27]}  Be7 {[%clk 0:01:30]} 13. Bxh6 {[%clk 0:00:40]}  gxh6 {[%clk 0:01:31]} 14. Qd2 {[%clk 0:00:41]}  Bf8 {[%clk 0:01:26]} 15. Qf4 {[%clk 0:00:38]}  Bg7 {[%clk 0:01:23]} 16. Rab1 {[%clk 0:00:38]}  O-O {[%clk 0:01:08]} 17. Qg3 {[%clk 0:00:19]}  Qc7 {[%clk 0:01:04]} 18. Nbd4 {[%clk 0:00:16]}  Nxd4 {[%clk 0:00:59]} 19. cxd4 {[%clk 0:00:08]}  b5 {[%clk 0:00:59]} 20. Nh4 {[%clk 0:00:04]}  f5 {[%clk 0:00:58]} 21. Rbc1 {[%clk 0:00:03]}  Qd8 {[%clk 0:00:58]} 22. f4 {[%clk 0:00:02]}  Rc8 {[%clk 0:00:58]} 23. Nf3 {[%clk 0:00:02]}  Qb6 {[%clk 0:00:58]} 24. Qf2 {[%clk 0:00:02]}  Rxc1 {[%clk 0:00:57]} 25. Rxc1 {[%clk 0:00:02]}  Rc8 {[%clk 0:00:58]} 26. Rxc8+ {[%clk 0:00:02]}  Bxc8 {[%clk 0:00:59]} 27. Qc2 {[%clk 0:00:02]}  Bd7 {[%clk 0:00:59]} 28. Kf2 {[%clk 0:00:02]}  Kf7 {[%clk 0:00:59]} 29. Ke3 {[%clk 0:00:02]}  Ke7 {[%clk 0:01:00]} 30. Nd2 {[%clk 0:00:02]}  Kd8 {[%clk 0:01:00]} 31. Nb3 {[%clk 0:00:02]}  Bf8 {[%clk 0:01:01]} 32. Nc5 {[%clk 0:00:02]}  a5 {[%clk 0:00:57]} 33. Ke2 {[%clk 0:00:01]}  b4 {[%clk 0:00:55]} 34. Ke3 {[%clk 0:00:02]}  Bxc5 {[%clk 0:00:51]} 35. dxc5 {[%clk 0:00:02]}  Qc6 {[%clk 0:00:48]} 36. Kd4 {[%clk 0:00:02]}  a4 {[%clk 0:00:47]} 37. Qd2 {[%clk 0:00:02]}  Qb7 {[%clk 0:00:45]} 38. Qb2 {[%clk 0:00:01]}  Bc6 {[%clk 0:00:43]} 39. Qd2 {[%clk 0:00:01]}  b3 {[%clk 0:00:42]} 40. axb3 {[%clk 0:00:01]}  axb3 {[%clk 0:00:38]} 41. Qa5+ {[%clk 0:00:01]}  Ke7 {[%clk 0:00:34]} 42. Kc3 {[%clk 0:00:01]}  b2 {[%clk 0:00:33]} 43. Qb6 {[%clk 0:00:01]}  d4+ {[%clk 0:00:22]} 44. Kxb2 {[%clk 0:00:01]}  Qxb6+ {[%clk 0:00:22]} 45. cxb6 {[%clk 0:00:02]}  Bxg2 {[%clk 0:00:22]} 46. Kb3 {[%clk 0:00:02]}  Kd7 {[%clk 0:00:22]} 47. Kc4 {[%clk 0:00:03]}  Kc6 {[%clk 0:00:22]} 48. Kxd4 {[%clk 0:00:03]}  Kxb6 {[%clk 0:00:23]} 49. Bc4 {[%clk 0:00:04]}  Kc7 {[%clk 0:00:18]} 50. Bxe6 {[%clk 0:00:04]}  Be4 {[%clk 0:00:19]} 51. Bg8 {[%clk 0:00:04]}  Kd7 {[%clk 0:00:20]} 52. Bxh7 {[%clk 0:00:04]}  Ke7 {[%clk 0:00:21]} 53. Bg6 {[%clk 0:00:04]}  Ke6 {[%clk 0:00:20]} 54. Be8 {[%clk 0:00:04]}  Ke7 {[%clk 0:00:21]} 55. Bb5 {[%clk 0:00:03]}  Ke6 {[%clk 0:00:21]} 56. Bc4+ {[%clk 0:00:03]}  Ke7 {[%clk 0:00:20]} 57. Bd3 {[%clk 0:00:04]} 1-0


[Site "https://www.chess.com"]

[Event "Titled Tuesday Blitz April 18 Early 2023"]
[White "Bodnaruk, Anastasia"]
[Black "Mohammed, Zozek Salah Mohammed"]
[WhiteFideId "4181751"]
[BlackFideId "4803361"]
[WhiteElo "2310"]
[BlackElo "2211"]
[Result "1-0"]
[Round "03"]
[TimeControl "180+2"]
[Date "2023.04.18"]
[WhiteClock "0:00:07"]
[BlackClock "0:00:01"]

1. e4 {[%clk 0:03:00]}  e6 {[%clk 0:02:55]} 2. d4 {[%clk 0:03:00]}  d5 {[%clk 0:02:55]} 3. e5 {[%clk 0:03:01]}  c5 {[%clk 0:02:54]} 4. c3 {[%clk 0:03:01]}  Nc6 {[%clk 0:02:54]} 5. Nf3 {[%clk 0:03:01]}  Qb6 {[%clk 0:02:55]} 6. Bd3 {[%clk 0:03:00]}  cxd4 {[%clk 0:02:53]} 7. O-O {[%clk 0:02:59]}  dxc3 {[%clk 0:02:49]} 8. Nxc3 {[%clk 0:02:58]}  Bd7 {[%clk 0:02:49]} 9. Re1 {[%clk 0:02:54]}  Nge7 {[%clk 0:02:48]} 10. Ng5 {[%clk 0:02:50]}  Ng6 {[%clk 0:02:46]} 11. Bxg6 {[%clk 0:02:36]}  hxg6 {[%clk 0:02:46]} 12. Qf3 {[%clk 0:02:34]}  Nd8 {[%clk 0:02:34]} 13. a4 {[%clk 0:02:09]}  Be7 {[%clk 0:02:28]} 14. a5 {[%clk 0:02:06]}  Qb4 {[%clk 0:02:08]} 15. a6 {[%clk 0:01:50]}  b6 {[%clk 0:01:45]} 16. Bf4 {[%clk 0:01:39]}  Rh5 {[%clk 0:01:41]} 17. Qg3 {[%clk 0:01:28]}  Rc8 {[%clk 0:01:25]} 18. Rad1 {[%clk 0:01:27]}  Qxb2 {[%clk 0:01:22]} 19. Nxd5 {[%clk 0:01:23]}  exd5 {[%clk 0:01:20]} 20. e6 {[%clk 0:01:21]}  Nxe6 {[%clk 0:01:11]} 21. Nxe6 {[%clk 0:01:21]}  Bxe6 {[%clk 0:01:10]} 22. Rxe6 {[%clk 0:01:21]}  fxe6 {[%clk 0:01:07]} 23. Qxg6+ {[%clk 0:01:21]}  Kd7 {[%clk 0:01:06]} 24. Qxh5 {[%clk 0:01:21]}  Rc2 {[%clk 0:00:58]} 25. Qg4 {[%clk 0:00:51]}  Qb3 {[%clk 0:00:27]} 26. Re1 {[%clk 0:00:50]}  d4 {[%clk 0:00:23]} 27. Qxg7 {[%clk 0:00:45]}  d3 {[%clk 0:00:22]} 28. Bg5 {[%clk 0:00:45]}  Qb4 {[%clk 0:00:20]} 29. Rd1 {[%clk 0:00:30]}  d2 {[%clk 0:00:16]} 30. h4 {[%clk 0:00:10]}  Qd6 {[%clk 0:00:11]} 31. h5 {[%clk 0:00:08]}  Ke8 {[%clk 0:00:05]} 32. Qg6+ {[%clk 0:00:07]}  Kd7 {[%clk 0:00:05]} 33. Qxc2 {[%clk 0:00:08]}  Bxg5 {[%clk 0:00:01]} 34. h6 {[%clk 0:00:07]} 1-0


[Site "https://www.chess.com"]

[Event "Titled Tuesday Blitz April 18 Early 2023"]
[White "Girya, Olga"]
[Black "Rottenwohrer Suarez, Juan"]
[WhiteFideId "4195752"]
[BlackFideId "32068182"]
[WhiteElo "2263"]
[BlackElo "2174"]
[Result "1/2-1/2"]
[Round "03"]
[TimeControl "180+2"]
[Date "2023.04.18"]
[WhiteClock "0:00:04"]
[BlackClock "0:00:06"]

1. d4 {[%clk 0:03:00]}  d5 {[%clk 0:02:58]} 2. Nf3 {[%clk 0:02:59]}  c5 {[%clk 0:02:55]} 3. c4 {[%clk 0:02:57]}  Nf6 {[%clk 0:02:53]} 4. cxd5 {[%clk 0:02:53]}  Nxd5 {[%clk 0:02:51]} 5. e4 {[%clk 0:02:48]}  Nf6 {[%clk 0:02:51]} 6. Nc3 {[%clk 0:02:47]}  cxd4 {[%clk 0:02:48]} 7. Nxd4 {[%clk 0:02:41]}  e5 {[%clk 0:02:41]} 8. Ndb5 {[%clk 0:02:38]}  Qxd1+ {[%clk 0:02:40]} 9. Kxd1 {[%clk 0:02:32]}  Na6 {[%clk 0:02:40]} 10. Bg5 {[%clk 0:02:32]}  Be6 {[%clk 0:02:27]} 11. Bxf6 {[%clk 0:02:07]}  gxf6 {[%clk 0:02:25]} 12. Nd5 {[%clk 0:02:08]}  Bxd5 {[%clk 0:02:20]} 13. exd5 {[%clk 0:02:07]}  f5 {[%clk 0:02:18]} 14. f3 {[%clk 0:01:37]}  Kd7 {[%clk 0:02:17]} 15. Bd3 {[%clk 0:01:37]}  f4 {[%clk 0:01:30]} 16. Bf5+ {[%clk 0:01:35]}  Ke7 {[%clk 0:01:30]} 17. Ke2 {[%clk 0:01:22]}  Kf6 {[%clk 0:01:30]} 18. Be4 {[%clk 0:01:22]}  Bc5 {[%clk 0:01:30]} 19. d6 {[%clk 0:01:17]}  Rad8 {[%clk 0:01:20]} 20. Rhd1 {[%clk 0:01:15]}  Rhg8 {[%clk 0:01:18]} 21. Kf1 {[%clk 0:01:13]}  Nb4 {[%clk 0:01:06]} 22. a3 {[%clk 0:00:55]}  Nc6 {[%clk 0:01:04]} 23. Bxc6 {[%clk 0:00:46]}  bxc6 {[%clk 0:01:04]} 24. Rac1 {[%clk 0:00:45]}  cxb5 {[%clk 0:00:14]} 25. Rxc5 {[%clk 0:00:45]}  Ke6 {[%clk 0:00:15]} 26. Rxb5 {[%clk 0:00:39]}  Rxd6 {[%clk 0:00:15]} 27. Rxd6+ {[%clk 0:00:37]}  Kxd6 {[%clk 0:00:16]} 28. Rb7 {[%clk 0:00:30]}  Rc8 {[%clk 0:00:16]} 29. h4 {[%clk 0:00:11]}  Rc1+ {[%clk 0:00:09]} 30. Kf2 {[%clk 0:00:12]}  Rc2+ {[%clk 0:00:09]} 31. Kg1 {[%clk 0:00:12]}  a5 {[%clk 0:00:09]} 32. Rxf7 {[%clk 0:00:11]}  Rxb2 {[%clk 0:00:08]} 33. Rxh7 {[%clk 0:00:11]}  Rb3 {[%clk 0:00:08]} 34. h5 {[%clk 0:00:10]}  Ke6 {[%clk 0:00:06]} 35. h6 {[%clk 0:00:06]}  Rxa3 {[%clk 0:00:03]} 36. Ra7 {[%clk 0:00:06]}  Rb3 {[%clk 0:00:02]} 37. Rxa5 {[%clk 0:00:05]}  Rb8 {[%clk 0:00:02]} 38. Kh2 {[%clk 0:00:03]}  Rh8 {[%clk 0:00:03]} 39. Ra6+ {[%clk 0:00:03]}  Kf5 {[%clk 0:00:03]} 40. Kh3 {[%clk 0:00:01]}  Kg5 {[%clk 0:00:04]} 41. Re6 {[%clk 0:00:01]}  Rxh6+ {[%clk 0:00:03]} 42. Rxh6 {[%clk 0:00:02]}  Kxh6 {[%clk 0:00:04]} 43. Kh4 {[%clk 0:00:02]}  Kg6 {[%clk 0:00:03]} 44. Kg4 {[%clk 0:00:03]}  Kf6 {[%clk 0:00:04]} 45. Kh5 {[%clk 0:00:03]}  Kf5 {[%clk 0:00:04]} 46. Kh6 {[%clk 0:00:04]}  e4 {[%clk 0:00:03]} 47. fxe4+ {[%clk 0:00:04]}  Kxe4 {[%clk 0:00:04]} 48. Kg5 {[%clk 0:00:04]}  f3 {[%clk 0:00:05]} 49. gxf3+ {[%clk 0:00:04]}  Kxf3 {[%clk 0:00:06]} 1/2-1/2


[Site "https://www.chess.com"]

[Event "Titled Tuesday Blitz April 18 Early 2023"]
[White "Liu, Casper"]
[Black "Shevtchenko, Olesya"]
[WhiteFideId "1454153"]
[BlackFideId "24131890"]
[WhiteElo "2221"]
[BlackElo "2003"]
[Result "1-0"]
[Round "03"]
[TimeControl "180+2"]
[Date "2023.04.18"]
[WhiteClock "0:00:29"]
[BlackClock "0:00:19"]

1. e4 {[%clk 0:02:51]}  c5 {[%clk 0:02:58]} 2. Nc3 {[%clk 0:02:49]}  Nc6 {[%clk 0:02:58]} 3. Bc4 {[%clk 0:02:50]}  e5 {[%clk 0:02:57]} 4. d3 {[%clk 0:02:50]}  Be7 {[%clk 0:02:55]} 5. f4 {[%clk 0:02:51]}  Nf6 {[%clk 0:02:52]} 6. f5 {[%clk 0:02:50]}  Na5 {[%clk 0:02:51]} 7. Nf3 {[%clk 0:02:42]}  b6 {[%clk 0:02:34]} 8. Nxe5 {[%clk 0:02:38]}  O-O {[%clk 0:02:28]} 9. g4 {[%clk 0:02:36]}  Bb7 {[%clk 0:02:17]} 10. g5 {[%clk 0:02:31]}  d5 {[%clk 0:02:18]} 11. gxf6 {[%clk 0:01:18]}  Bxf6 {[%clk 0:02:19]} 12. Nxd5 {[%clk 0:01:03]}  Bxe5 {[%clk 0:02:16]} 13. Qg4 {[%clk 0:00:57]}  Nxc4 {[%clk 0:02:07]} 14. dxc4 {[%clk 0:00:53]}  b5 {[%clk 0:02:04]} 15. Rg1 {[%clk 0:00:48]}  bxc4 {[%clk 0:01:55]} 16. Bg5 {[%clk 0:00:44]}  f6 {[%clk 0:01:47]} 17. Bh6 {[%clk 0:00:41]}  Rf7 {[%clk 0:01:45]} 18. Bxg7 {[%clk 0:00:40]}  Qa5+ {[%clk 0:00:46]} 19. c3 {[%clk 0:00:37]}  h5 {[%clk 0:00:19]} 20. Qg6 {[%clk 0:00:36]}  Rd7 {[%clk 0:00:19]} 21. Bxf6+ {[%clk 0:00:29]} 1-0


[Site "https://www.chess.com"]

[Event "Titled Tuesday Blitz April 18 Early 2023"]
[White "Andreev, Konstantin"]
[Black "Hirneise, Jens"]
[WhiteFideId "24239305"]
[BlackFideId "24614734"]
[WhiteElo "2106"]
[BlackElo "2345"]
[Result "0-1"]
[Round "03"]
[TimeControl "180+2"]
[Date "2023.04.18"]
[WhiteClock "0:02:03"]
[BlackClock "0:02:10"]

1. e4 {[%clk 0:03:00]}  c6 {[%clk 0:02:58]} 2. d4 {[%clk 0:03:00]}  d5 {[%clk 0:02:58]} 3. e5 {[%clk 0:03:01]}  c5 {[%clk 0:02:57]} 4. dxc5 {[%clk 0:03:02]}  Nc6 {[%clk 0:02:56]} 5. Nf3 {[%clk 0:03:03]}  Bg4 {[%clk 0:02:55]} 6. Bf4 {[%clk 0:03:02]}  e6 {[%clk 0:02:53]} 7. Be2 {[%clk 0:02:48]}  Bxf3 {[%clk 0:02:45]} 8. Bxf3 {[%clk 0:02:47]}  Bxc5 {[%clk 0:02:46]} 9. O-O {[%clk 0:02:47]}  Nge7 {[%clk 0:02:46]} 10. Bg3 {[%clk 0:02:46]}  Nf5 {[%clk 0:02:39]} 11. Nd2 {[%clk 0:02:37]}  Nxg3 {[%clk 0:02:37]} 12. hxg3 {[%clk 0:02:38]}  Nxe5 {[%clk 0:02:37]} 13. Re1 {[%clk 0:02:33]}  Nxf3+ {[%clk 0:02:28]} 14. Qxf3 {[%clk 0:02:34]}  O-O {[%clk 0:02:28]} 15. Rad1 {[%clk 0:02:32]}  Qf6 {[%clk 0:02:26]} 16. Qxf6 {[%clk 0:02:28]}  gxf6 {[%clk 0:02:27]} 17. c4 {[%clk 0:02:28]}  Rfd8 {[%clk 0:02:23]} 18. Nb3 {[%clk 0:02:24]}  Bb4 {[%clk 0:02:22]} 19. Nd2 {[%clk 0:02:07]}  dxc4 {[%clk 0:02:21]} 20. Re2 {[%clk 0:02:05]}  c3 {[%clk 0:02:17]} 21. bxc3 {[%clk 0:02:04]}  Bxc3 {[%clk 0:02:18]} 22. Kf1 {[%clk 0:02:03]}  Rd7 {[%clk 0:02:11]} 23. Ke1 {[%clk 0:02:03]}  Rad8 {[%clk 0:02:10]} 0-1


[Site "https://www.chess.com"]

[Event "Titled Tuesday Blitz April 18 Early 2023"]
[White "Ansh M Shah"]
[Black "MKlose11"]
[WhiteFideId "25033379"]
[WhiteElo "2084"]
[BlackElo "2577"]
[Result "0-1"]
[Round "03"]
[TimeControl "180+2"]
[Date "2023.04.18"]
[WhiteClock "0:00:01"]
[BlackClock "0:00:51"]

1. d4 {[%clk 0:03:00]}  Nf6 {[%clk 0:02:59]} 2. c4 {[%clk 0:02:55]}  c5 {[%clk 0:02:59]} 3. d5 {[%clk 0:02:55]}  b5 {[%clk 0:02:59]} 4. cxb5 {[%clk 0:02:56]}  a6 {[%clk 0:02:59]} 5. e3 {[%clk 0:02:55]}  g6 {[%clk 0:02:59]} 6. Nc3 {[%clk 0:02:55]}  Bg7 {[%clk 0:03:00]} 7. Nf3 {[%clk 0:02:55]}  O-O {[%clk 0:03:00]} 8. a4 {[%clk 0:02:56]}  d6 {[%clk 0:02:59]} 9. e4 {[%clk 0:02:55]}  Nbd7 {[%clk 0:02:58]} 10. Bg5 {[%clk 0:02:52]}  Ne8 {[%clk 0:02:54]} 11. Be2 {[%clk 0:02:49]}  Nc7 {[%clk 0:02:54]} 12. O-O {[%clk 0:02:49]}  axb5 {[%clk 0:02:55]} 13. axb5 {[%clk 0:02:47]}  Rb8 {[%clk 0:02:55]} 14. Qd2 {[%clk 0:02:42]}  Ne5 {[%clk 0:02:54]} 15. Nxe5 {[%clk 0:02:39]}  Bxe5 {[%clk 0:02:53]} 16. Bf4 {[%clk 0:02:34]}  Bxf4 {[%clk 0:02:49]} 17. Qxf4 {[%clk 0:02:33]}  Bd7 {[%clk 0:02:50]} 18. Ra5 {[%clk 0:02:07]}  Nxd5 {[%clk 0:02:29]} 19. Nxd5 {[%clk 0:02:04]}  Qxa5 {[%clk 0:02:28]} 20. Nxe7+ {[%clk 0:02:01]}  Kg7 {[%clk 0:02:28]} 21. Qxd6 {[%clk 0:01:55]}  Bxb5 {[%clk 0:02:19]} 22. Qxc5 {[%clk 0:01:36]}  Qb6 {[%clk 0:02:11]} 23. Qc3+ {[%clk 0:01:08]}  Qf6 {[%clk 0:02:09]} 24. Bxb5 {[%clk 0:00:30]}  Rxb5 {[%clk 0:02:01]} 25. Nd5 {[%clk 0:00:28]}  Qxc3 {[%clk 0:01:57]} 26. bxc3 {[%clk 0:00:29]}  Rb2 {[%clk 0:01:55]} 27. Rc1 {[%clk 0:00:19]}  Rfb8 {[%clk 0:01:39]} 28. g3 {[%clk 0:00:12]}  Re2 {[%clk 0:01:37]} 29. c4 {[%clk 0:00:10]}  Rxe4 {[%clk 0:01:32]} 30. c5 {[%clk 0:00:10]}  Re5 {[%clk 0:01:27]} 31. Nb6 {[%clk 0:00:10]}  Ree8 {[%clk 0:01:13]} 32. Nd7 {[%clk 0:00:04]}  Rbc8 {[%clk 0:01:01]} 33. Nb6 {[%clk 0:00:03]}  Rc6 {[%clk 0:01:00]} 34. Na4 {[%clk 0:00:01]}  Ra8 {[%clk 0:00:58]} 35. Rc4 {[%clk 0:00:02]}  Ra5 {[%clk 0:00:51]} 36. Kg2 {[%clk 0:00:01]}  Rb5 {[%clk 0:00:51]} 0-1


[Site "https://www.chess.com"]

[Event "Titled Tuesday Blitz April 18 Early 2023"]
[White "Lenaerts, Lennert"]
[Black "Hoffmann, Asa"]
[WhiteFideId "211435"]
[BlackFideId "2001470"]
[WhiteElo "2334"]
[BlackElo "2117"]
[Result "1-0"]
[Round "03"]
[TimeControl "180+2"]
[Date "2023.04.18"]
[WhiteClock "0:00:45"]
[BlackClock "0:00:05"]

1. d4 {[%clk 0:03:00]}  Nf6 {[%clk 0:02:55]} 2. c4 {[%clk 0:03:00]}  c5 {[%clk 0:02:54]} 3. d5 {[%clk 0:03:00]}  e5 {[%clk 0:02:54]} 4. Nc3 {[%clk 0:03:00]}  d6 {[%clk 0:02:54]} 5. e4 {[%clk 0:02:57]}  Be7 {[%clk 0:02:54]} 6. Bd3 {[%clk 0:02:57]}  Nbd7 {[%clk 0:02:54]} 7. Nge2 {[%clk 0:02:51]}  Nf8 {[%clk 0:02:54]} 8. O-O {[%clk 0:02:51]}  Ng6 {[%clk 0:02:53]} 9. a3 {[%clk 0:02:52]}  O-O {[%clk 0:02:53]} 10. b4 {[%clk 0:02:52]}  b6 {[%clk 0:02:53]} 11. Be3 {[%clk 0:02:48]}  Nh5 {[%clk 0:02:52]} 12. g3 {[%clk 0:02:48]}  Bh3 {[%clk 0:02:46]} 13. Re1 {[%clk 0:02:48]}  Bg5 {[%clk 0:02:40]} 14. Qd2 {[%clk 0:02:45]}  h6 {[%clk 0:02:25]} 15. Rab1 {[%clk 0:02:45]}  Nhf4 {[%clk 0:02:12]} 16. bxc5 {[%clk 0:02:34]}  bxc5 {[%clk 0:02:00]} 17. gxf4 {[%clk 0:02:26]}  Nh4 {[%clk 0:01:58]} 18. Qc2 {[%clk 0:02:14]}  Nf3+ {[%clk 0:01:45]} 19. Kh1 {[%clk 0:02:14]}  Nxe1 {[%clk 0:01:41]} 20. Rxe1 {[%clk 0:02:15]}  exf4 {[%clk 0:01:36]} 21. Bxf4 {[%clk 0:02:16]}  Qf6 {[%clk 0:01:33]} 22. Qd2 {[%clk 0:02:13]}  Rab8 {[%clk 0:01:28]} 23. e5 {[%clk 0:02:04]}  Bxf4 {[%clk 0:01:20]} 24. Nxf4 {[%clk 0:02:00]}  dxe5 {[%clk 0:01:19]} 25. Nxh3 {[%clk 0:01:55]}  Qf3+ {[%clk 0:01:18]} 26. Kg1 {[%clk 0:01:56]}  Qxh3 {[%clk 0:01:18]} 27. Re3 {[%clk 0:01:41]}  Qh5 {[%clk 0:01:09]} 28. Qe2 {[%clk 0:01:34]}  Qg5+ {[%clk 0:00:54]} 29. Kh1 {[%clk 0:01:22]}  f5 {[%clk 0:00:51]} 30. Rxe5 {[%clk 0:01:14]}  Qc1+ {[%clk 0:00:48]} 31. Nd1 {[%clk 0:01:14]}  Rb2 {[%clk 0:00:38]} 32. Qe1 {[%clk 0:01:03]}  Rd2 {[%clk 0:00:29]} 33. Be2 {[%clk 0:00:59]}  f4 {[%clk 0:00:26]} 34. Bh5 {[%clk 0:00:55]}  f3 {[%clk 0:00:22]} 35. Bxf3 {[%clk 0:00:51]}  Rxf3 {[%clk 0:00:21]} 36. Re8+ {[%clk 0:00:52]}  Rf8 {[%clk 0:00:16]} 37. Qe6+ {[%clk 0:00:52]}  Kh7 {[%clk 0:00:16]} 38. Qe4+ {[%clk 0:00:52]}  Kg8 {[%clk 0:00:13]} 39. Qe6+ {[%clk 0:00:52]}  Kh7 {[%clk 0:00:13]} 40. Rxf8 {[%clk 0:00:48]}  Rxd1+ {[%clk 0:00:10]} 41. Kg2 {[%clk 0:00:48]}  Rg1+ {[%clk 0:00:10]} 42. Kh3 {[%clk 0:00:46]}  Qf1+ {[%clk 0:00:08]} 43. Kh4 {[%clk 0:00:45]}  g5+ {[%clk 0:00:05]} 44. Kh5 {[%clk 0:00:45]}  Qd1+ {[%clk 0:00:05]} 45. f3 {[%clk 0:00:45]} 1-0


[Site "https://www.chess.com"]